bitfinex-derivatives/quotes_BNBF0:USTF0_20250907
["timestamp","ask_amount","ask_price","bid_price","bid_amount"]
[1757276233546,0.19866245,877.61,876.51,1.79191406]
[1757276234246,0.19866245,877.61,876.52,0.74405482]
[1757276234450,0.19866245,877.61,876.52,1.79191406]
[1757276244560,0.19866245,877.61,876.52,3.33180126]
[1757276273776,0.19866245,877.61,875.83,2.5666806]
[1757276273777,0.19866245,877.61,876.51,3.33180126]
[1757276273975,0.19866245,877.61,876.5,3.33180126]
[1757276275076,0.19866245,877.61,876.5,3.13180126]
[1757276278383,0.19866245,877.61,876.51,3.3019692]
[1757276278587,0.19866245,877.61,876.52,3.3019692]
[1757276278885,0.19866245,877.61,875.89,2.5666806]
[1757276278886,0.19866245,877.61,876.51,2.56016207]
[1757276279090,0.19866245,877.61,876.52,3.30196629]
[1757276279283,0.19866245,877.61,876.52,2.56016207]
[1757276293998,0.19866245,877.61,876.51,2.56016207]
[1757276335221,0.19866245,877.61,876.51,3.33244487]
[1757276346932,0.19866245,877.61,876.52,2.53902416]
[1757276347131,0.19866245,877.61,876.53,2.53902416]
[1757276347332,0.19866245,877.61,876.53,1.79255767]
[1757276348132,0.19866245,877.61,876.63,1.79255767]
[1757276349032,0.19866245,877.61,876.63,1.61535767]
[1757276349331,0.19866245,877.61,876.64,1.76632949]
[1757276349535,0.19866245,877.61,876.64,1.02027487]
[1757276362544,0.19866245,877.61,876.64,2.56016207]
[1757276366846,0.19866245,877.61,876.64,1.02027487]
[1757276371544,0.19866245,877.61,876.67,1.02027487]
[1757276371843,0.19866245,877.61,876.7,1.02027487]
[1757276398077,0.19866245,877.61,876.78,1.02027487]
[1757276400178,0.19866245,877.61,876.78,0.82027487]
[1757276404083,0.19866245,877.61,876.79,0.73841179]
[1757276404379,0.19866245,877.61,876.66,1.5398872]
[1757276404582,0.19866245,877.61,876.67,0.73845914]
[1757276404780,0.19866245,877.61,876.68,0.73845914]
[1757276405079,0.19866245,877.61,876.69,0.73845914]
[1757276405280,0.19866245,877.61,876.7,0.73845914]
[1757276405484,0.19866245,877.61,876.71,0.73845914]
[1757276405679,0.19866245,877.61,876.66,1.5398872]
[1757276405680,0.19866245,877.61,876.72,0.73845914]
[1757276405884,0.19866245,877.61,876.73,0.73845914]
[1757276406080,0.19866245,877.61,876.74,0.73845914]
[1757276406381,0.19866245,877.61,876.75,0.73845914]
[1757276406584,0.19866245,877.61,876.76,0.73845914]
[1757276406879,0.19866245,877.61,876.77,0.73845914]
[1757276407084,0.19866245,877.61,876.78,0.73845914]
[1757276407284,0.19866245,877.61,876.79,0.73845914]
[1757276407481,0.19866245,877.61,876.68,1.5398872]
[1757276407784,0.19866245,877.61,876.69,0.73865261]
[1757276407984,0.19866245,877.61,876.7,0.73865261]
[1757276408184,0.19866245,877.61,876.71,0.73865261]
[1757276408384,0.19866245,877.61,876.72,0.73865261]
[1757276408581,0.19866245,877.61,876.73,0.73865261]
[1757276408780,0.19866245,877.61,876.74,0.73865261]
[1757276408982,0.19866245,877.61,876.77,0.77081773]
[1757276412285,0.19866245,877.61,876.53,1.5398872]
[1757276412286,0.19866245,877.61,876.76,0.77081773]
[1757276412985,0.19866245,877.61,876.72,0.77081773]
[1757276415986,0.19866245,877.61,876.72,2.31070493]
[1757276416483,0.19866245,877.61,876.73,0.73871403]
[1757276416784,0.19866245,877.61,876.73,2.31070493]
[1757276418388,1.5411207,878.16,876.73,2.31070493]
[1757276418584,0.19861313,877.4,876.73,2.31070493]
[1757276418784,1.5411207,878.16,876.73,2.31070493]
[1757276418983,0.1986137,877.24,876.73,2.31070493]
[1757276419286,1.5411207,878.16,876.73,2.31070493]
[1757276419585,1.5411207,878.14,876.73,2.31070493]
[1757276419982,1.5411207,878.14,876.71,2.31070493]
[1757276420185,1.5411207,878.13,876.71,2.31070493]
[1757276420383,1.5411207,878.12,876.7,2.31070493]
[1757276420683,0.19863014,877.79,876.7,2.31070493]
[1757276421483,0.19863014,877.79,876.69,2.31070493]
[1757276421688,0.19863014,877.79,876.66,0.77081773]
[1757276422388,0.19863014,877.79,876.62,0.77081773]
[1757276426689,0.19863014,877.79,876.62,2.31070493]
[1757276427084,0.19863014,877.79,876.61,2.31070493]
[1757276427286,0.19863014,877.79,876.55,2.31070493]
[1757276429291,0.19863014,877.79,876.55,0.77081773]
[1757276430188,0.19863014,877.79,876.55,1.79857903]
[1757276432290,0.19863014,877.79,876.53,1.79857903]
[1757276438589,0.19863014,877.79,876.49,1.79857903]
[1757276465616,0.19863014,877.79,876.48,1.79857903]
[1757276477125,0.19863014,877.79,876.48,1.59857903]
[1757276477929,0.19863014,877.79,876.47,0.77081773]
[1757276478724,0.19863014,877.79,876.45,0.77081773]
[1757276478929,0.19863014,877.79,876.44,0.77081773]
[1757276482430,0.19863014,877.79,876.43,2.31070493]
[1757276483029,0.19863014,877.79,876.43,0.77081773]
[1757276486135,0.19863014,877.79,876.43,2.31070493]
[1757276488036,1.5411207,877.78,876.38,2.11200618]
[1757276488434,1.5411207,877.77,876.38,2.11200618]
[1757276488837,1.5411207,877.72,876.36,1.5398872]
[1757276490039,1.5411207,877.74,876.36,1.5398872]
[1757276491236,0.1987101,877.4,876.36,1.5398872]
[1757276492138,0.1987101,877.4,876.35,1.5398872]
[1757276492437,0.1987101,877.4,876.36,0.7331984]
[1757276492636,0.1987101,877.4,876.35,1.5398872]
[1757276492836,0.1987101,877.4,876.36,0.7331984]
[1757276493037,0.1987101,877.4,876.35,1.5398872]
[1757276493237,0.1987101,877.4,876.36,0.7332079]
[1757276493437,0.1987101,877.4,876.36,1.5398872]
[1757276495639,0.1987101,877.4,876.35,1.5398872]
[1757276495842,0.1987101,877.4,876.36,0.7330903]
[1757276496038,0.1987101,877.4,876.35,1.5398872]
[1757276496243,0.1987101,877.4,876.36,2.2729775]
[1757276496443,0.1987101,877.4,876.35,1.5398872]
[1757276496743,0.1987101,877.4,876.36,0.7330653]
[1757276497040,0.1987101,877.4,876.35,1.5398872]
[1757276497241,0.1987101,877.4,876.36,0.7330653]
[1757276497440,0.1987101,877.4,876.35,1.5398872]
[1757276497639,0.1987101,877.4,876.36,0.7330452]
[1757276497842,0.1987101,877.4,876.36,1.5398872]
[1757276499440,0.1987101,877.4,876.35,1.5398872]
[1757276499640,0.1987101,877.4,876.36,0.7329977]
[1757276499840,0.1987101,877.4,876.36,1.5398872]
[1757276500945,0.1987101,877.4,876.35,1.5398872]
[1757276501241,0.1987101,877.4,876.36,0.7329687]
[1757276501446,0.1987101,877.4,876.34,1.5398872]
[1757276501646,0.1987101,877.4,876.35,0.7329426]
[1757276501946,0.1987101,877.4,876.36,2.2728298]
[1757276502244,0.1987101,877.4,876.36,1.5398872]
[1757276506952,0.1987101,877.4,876.33,1.5398872]
[1757276507154,0.1987101,877.4,876.36,1.0281148]
[1757276513761,0.1987101,877.4,876.34,1.0281148]
[1757276521467,0.1987101,877.4,876.35,1.76081122]
[1757276521667,0.1987101,877.4,876.35,1.0281148]
[1757276534276,0.1987101,877.4,876.35,2.568002]
[1757276534473,0.1987101,877.4,876.35,1.0281148]
[1757276535375,0.1987101,877.4,876.35,2.568002]
[1757276538178,0.1987101,877.4,876.34,2.568002]
[1757276548183,0.1987101,877.4,876.34,3.34035019]
[1757276553287,0.1987101,877.4,876.34,1.80046299]
[1757276562595,0.1987101,877.4,876.33,1.80046299]
[1757276562794,0.1987101,877.4,876.34,2.53397779]
[1757276562996,0.1987101,877.4,876.34,3.34035019]
[1757276568200,0.1987101,877.4,876.34,1.80046299]
[1757276578107,0.1987101,877.4,876.34,3.34035019]
[1757276583008,1.5411207,877.6,876.28,3.14162875]
[1757276583209,1.5411207,877.61,876.28,3.14162875]
[1757276583413,1.5411207,877.59,876.28,3.14162875]
[1757276584011,1.5411207,877.58,876.28,3.14162875]
[1757276584308,1.5411207,877.54,876.24,2.568002]
[1757276585107,1.5411207,877.55,876.24,2.568002]
[1757276585914,0.19873563,877.23,876.24,2.568002]
[1757276588013,0.19873563,877.23,876.23,2.568002]
[1757276589918,0.19873563,877.23,876.24,3.29868415]
[1757276590113,0.19873563,877.23,876.24,2.568002]
[1757276590612,0.19873563,877.23,876.21,2.568002]
[1757276592714,0.19873563,877.23,876.2,2.568002]
[1757276594817,0.19873563,877.23,876.2,1.0281148]
[1757276595516,0.19873563,877.23,876.2,2.568002]
[1757276595714,0.19873563,877.23,876.2,1.0281148]
[1757276601016,0.19873563,877.23,875.41,2.5666806]
[1757276601017,0.19873563,877.23,876.06,1.0281148]
[1757276601217,0.19873563,877.23,876.07,0.73006792]
[1757276601420,0.19873563,877.23,876.08,0.73006792]
[1757276601619,0.19873563,877.23,876.09,0.73006792]
[1757276601822,0.19873563,877.23,876.1,0.73006792]
[1757276602022,0.19873563,877.23,876.11,0.73006792]
[1757276602322,0.19873563,877.23,876.12,0.73006792]
[1757276602619,0.19873563,877.23,876.13,0.73006792]
[1757276602824,0.19873563,877.23,876.14,0.73006792]
[1757276603021,0.19873563,877.23,876.04,1.0281148]
[1757276603220,0.19873563,877.23,876.05,0.72991128]
[1757276603421,0.19873563,877.23,876.06,0.72991128]
[1757276603720,0.19873563,877.23,876.07,0.72991128]
[1757276604022,0.19873563,877.23,876.08,0.72991128]
[1757276604220,0.19873563,877.23,876.09,0.72991128]
[1757276604422,0.19873563,877.23,876.1,0.72991128]
[1757276604621,0.19873563,877.23,876.11,0.72991128]
[1757276604921,0.19873563,877.23,876.12,0.72991128]
[1757276605222,0.19873563,877.23,876.13,0.72991128]
[1757276605525,0.19873563,877.23,876.03,1.0281148]
[1757276605526,0.19873563,877.23,876.14,0.72991128]
[1757276605725,0.19873563,877.23,876.03,1.0281148]
[1757276606020,0.19873563,877.23,876.04,0.7297751]
[1757276606219,0.19873563,877.23,876.05,0.7297751]
[1757276606424,0.19873563,877.23,876.06,0.7297751]
[1757276606622,0.19873563,877.23,876.07,0.7297751]
[1757276606821,0.19873563,877.23,876.08,0.7297751]
[1757276607123,0.19873563,877.23,876.09,0.7297751]
[1757276607323,0.19873563,877.23,876.1,0.7297751]
[1757276607525,0.19873563,877.23,876.11,0.7297751]
[1757276607722,0.19873563,877.23,876.0,1.0281148]
[1757276607927,0.19873563,877.23,876.01,0.72968042]
[1757276608123,0.19873563,877.23,876.02,0.72968042]
[1757276608330,0.19873563,877.23,875.97,1.0281148]
[1757276610732,0.19873563,877.23,876.12,1.0281148]
[1757276611232,0.19873563,877.23,876.11,1.0281148]
[1757276612733,0.19873563,877.23,876.1,1.0281148]
[1757276613433,0.19873563,877.23,876.11,1.0281148]
[1757276614032,0.19873563,877.23,876.1,1.0281148]
[1757276614329,0.19873563,877.23,876.11,1.0281148]
[1757276620535,0.19873563,877.23,876.12,1.0281148]
[1757276623540,0.19873563,877.23,876.11,1.0281148]
[1757276626641,0.19873563,877.23,876.12,1.0281148]
[1757276632445,0.19873563,877.23,876.11,1.0281148]
[1757276633348,0.19873563,877.23,876.12,1.0281148]
[1757276636148,0.19873563,877.23,876.11,1.0281148]
[1757276643052,0.19873563,877.23,876.11,1.79952166]
[1757276648748,0.19873563,877.23,876.09,1.79952166]
[1757276659659,0.19873563,877.23,876.08,1.79952166]
[1757276659858,0.19873563,877.23,876.07,1.79952166]
[1757276668469,0.19873563,877.23,876.07,3.33940886]
[1757276711005,0.19873563,877.23,876.07,1.79952166]
[1757276726124,0.19873563,877.23,876.08,2.52887711]
[1757276726323,0.19873563,877.23,876.08,1.79952166]
[1757276736428,0.19873563,877.23,876.09,2.52889729]
[1757276736634,0.19873563,877.23,876.09,1.79952166]
[1757276743542,0.19873563,877.23,876.09,3.33940886]
[1757276746743,0.19873563,877.23,876.08,3.33940886]
[1757276747647,0.19873563,877.23,876.08,2.568002]
[1757276747846,0.19873563,877.23,876.08,3.34054657]
[1757276748743,0.19873563,877.23,876.07,3.34054657]
[1757276748947,0.19873563,877.23,876.07,1.0281148]
[1757276749147,0.19873563,877.23,876.06,3.34054657]
[1757276750249,0.19873563,877.23,876.07,4.06979239]
[1757276750448,0.19873563,877.23,876.07,3.34054657]
[1757276766856,0.19873563,877.23,876.06,1.80065937]
[1757276767156,0.19873563,877.23,876.04,1.80065937]
[1757276768160,0.19873563,877.23,876.02,1.80065937]
[1757276771760,0.19873563,877.23,875.99,1.80065937]
[1757276773259,0.19873563,877.23,875.98,1.80065937]
[1757276776261,0.19873563,877.23,875.96,1.80065937]
[1757276779465,0.19873563,877.23,875.97,2.52943263]
[1757276779766,0.19873563,877.23,875.96,1.80065937]
[1757276781262,0.19873563,877.23,875.89,1.5398872]
[1757276781263,0.19873563,877.23,875.97,2.52934076]
[1757276781467,0.19873563,877.23,875.97,1.80065937]
[1757276785966,1.5411207,877.39,875.97,1.80065937]
[1757276786162,0.19878842,876.92,875.97,1.80065937]
[1757276786467,1.5411207,877.38,875.97,1.80065937]
[1757276786664,0.19878955,876.69,875.97,1.80065937]
[1757276786863,1.5411207,877.39,875.96,1.80065937]
[1757276787065,0.19878842,876.52,875.96,1.80065937]
[1757276787265,1.5411207,877.39,875.96,1.80065937]
[1757276787564,1.5411207,877.38,875.96,1.80065937]
[1757276788171,1.5411207,877.35,875.93,1.80065937]
[1757276788568,0.1987941,877.0,875.93,1.80065937]
[1757276790372,0.1987941,877.0,875.94,2.52906741]
[1757276790667,0.1987941,877.0,875.94,1.80065937]
[1757276819993,0.1987941,877.0,876.29,0.77254457]
[1757276820290,0.1987941,877.0,876.4,1.80065937]
[1757276820593,0.1987941,877.0,876.41,1.0281148]
[1757276820788,0.1987941,877.0,876.47,1.79945265]
[1757276821490,0.1987941,877.0,876.47,0.77133785]
[1757276821695,0.1987941,877.0,876.47,0.57133785]
[1757276826190,0.1987941,877.0,876.48,0.72390098]
[1757276826392,0.1987941,877.0,876.38,1.0281148]
[1757276826588,0.1987941,877.0,876.39,0.72359261]
[1757276826788,0.1987941,877.0,876.42,1.0281148]
[1757276826992,0.1987941,877.0,876.43,1.75170741]
[1757276827193,0.1987941,877.0,876.44,0.72359261]
[1757276827394,0.1987941,877.0,876.45,0.72359261]
[1757276827693,0.1987941,877.0,876.46,0.72359261]
[1757276827989,0.1987941,877.0,876.47,0.72359261]
[1757276828189,0.1987941,877.0,876.48,0.72359261]
[1757276828388,0.1987941,877.0,876.44,1.0281148]
[1757276828590,0.1987941,877.0,876.45,0.72305501]
[1757276828790,0.1987941,877.0,876.46,0.72305501]
[1757276828990,0.1987941,877.0,876.47,0.72305501]
[1757276829193,0.1987941,877.0,876.48,0.72305501]
[1757276829390,0.1987941,877.0,876.44,1.0281148]
[1757276829590,0.1987941,877.0,876.45,0.72282104]
[1757276829793,0.1987941,877.0,876.46,0.72282104]
[1757276829996,0.1987941,877.0,876.47,0.72282104]
[1757276830197,0.1987941,877.0,876.43,1.0281148]
[1757276830494,0.1987941,877.0,876.44,0.72261238]
[1757276830692,0.1987941,877.0,876.43,1.0281148]
[1757276830693,0.1987941,877.0,876.45,0.72261238]
[1757276830892,0.1987941,877.0,876.46,0.72261238]
[1757276831096,0.1987941,877.0,876.47,0.72261238]
[1757276831298,0.1987941,877.0,876.44,1.0281148]
[1757276831492,0.1987941,877.0,876.45,0.72241659]
[1757276831697,0.1987941,877.0,876.46,0.72241659]
[1757276831893,0.1987941,877.0,876.47,0.72241659]
[1757276832098,0.1987941,877.0,876.43,1.0281148]
[1757276832398,0.1987941,877.0,876.44,0.72241659]
[1757276832609,0.1987941,877.0,876.45,0.72241659]
[1757276832799,0.1987941,877.0,876.46,0.72241659]
[1757276832995,0.1987941,877.0,876.47,0.72241659]
[1757276833198,0.1987941,877.0,876.43,1.0281148]
[1757276833396,0.1987941,877.0,876.44,0.72207483]
[1757276833595,0.1987941,877.0,876.45,0.72207483]
[1757276833796,0.1987941,877.0,876.46,0.72207483]
[1757276834096,0.1987941,877.0,876.47,0.72207483]
[1757276834300,0.1987941,877.0,876.43,1.0281148]
[1757276834600,0.1987941,877.0,876.44,0.72192407]
[1757276834794,0.1987941,877.0,876.45,0.72192407]
[1757276835000,0.1987941,877.0,876.46,0.72192407]
[1757276835196,0.1987941,877.0,876.47,0.72192407]
[1757276835400,0.1987941,877.0,876.46,1.0281148]
[1757276835600,0.1987941,877.0,876.47,0.72178548]
[1757276835898,0.1987941,877.0,876.48,0.72178548]
[1757276836098,0.1987941,877.0,876.46,1.0281148]
[1757276836404,0.1987941,877.0,876.47,0.72178296]
[1757276836598,0.1987941,877.0,876.48,0.72178296]
[1757276836800,0.1987941,877.0,876.46,1.0281148]
[1757276837097,0.1987941,877.0,876.47,0.72165623]
[1757276837396,0.1987941,877.0,876.48,0.72165623]
[1757276837600,0.1987941,877.0,876.46,1.0281148]
[1757276837800,0.1987941,877.0,876.47,0.72154028]
[1757276838096,0.1987941,877.0,876.48,0.72154028]
[1757276838301,0.1987941,877.0,876.46,1.0281148]
[1757276838600,0.1987941,877.0,876.47,0.72143446]
[1757276838797,0.1987941,877.0,876.48,0.72143446]
[1757276839100,0.1987941,877.0,876.45,1.0281148]
[1757276839297,0.1987941,877.0,876.46,0.72143446]
[1757276839502,0.1987941,877.0,876.47,0.72143446]
[1757276839701,0.1987941,877.0,876.48,0.72143446]
[1757276839902,0.1987941,877.0,876.45,1.0281148]
[1757276840097,0.1987941,877.0,876.46,0.72133841]
[1757276840400,0.1987941,877.0,876.47,0.72133841]
[1757276840700,0.1987941,877.0,876.2,1.0281148]
[1757276840899,1.5411207,878.7,876.21,0.72126304]
[1757276841104,1.5411207,878.7,876.22,0.72126304]
[1757276841300,1.5411207,878.71,876.23,0.72126304]
[1757276841501,1.5411207,878.71,876.24,0.72126304]
[1757276841706,1.5411207,878.7,876.25,0.72126304]
[1757276842003,1.5411207,878.7,876.26,0.72126304]
[1757276842304,1.5411207,878.7,875.81,1.5398872]
[1757276842305,1.5411207,878.7,876.27,0.72126304]
[1757276842604,1.5411207,878.7,876.28,0.72126304]
[1757276842802,1.5411207,878.7,876.29,0.72126304]
[1757276843000,1.5411207,878.7,876.3,0.72126304]
[1757276843299,1.5411207,878.7,876.31,0.72126304]
[1757276843501,1.5411207,878.7,876.32,0.72126304]
[1757276843705,1.5411207,878.7,876.33,0.72126304]
[1757276843906,0.19864828,878.11,876.34,0.72126304]
[1757276844202,0.19864828,878.11,876.35,0.72126304]
[1757276844402,0.19864828,878.11,876.36,0.72126304]
[1757276844606,0.19864828,878.11,876.37,0.72126304]
[1757276844807,0.19864828,878.11,876.38,0.72126304]
[1757276845102,0.19864828,878.11,876.39,0.72126304]
[1757276845303,0.19864828,878.11,876.4,0.72126304]
[1757276845506,0.19864828,878.11,875.81,1.5398872]
[1757276845706,0.19864828,878.11,875.82,0.71901865]
[1757276845904,0.19864828,878.11,875.83,0.71901865]
[1757276846108,0.19864828,878.11,875.84,0.71901865]
[1757276846309,0.19864828,878.11,875.85,0.71901865]
[1757276846504,0.19864828,878.11,875.86,0.71901865]
[1757276846708,0.19864828,878.11,875.87,0.71901865]
[1757276847008,0.19864828,878.11,875.88,0.71901865]
[1757276847209,0.19864828,878.11,875.89,0.71901865]
[1757276847406,0.19864828,878.11,875.9,0.71901865]
[1757276847608,0.19864828,878.11,875.91,0.71901865]
[1757276847806,0.19864828,878.11,875.92,0.71901865]
[1757276848009,0.19864828,878.11,875.93,0.71901865]
[1757276848207,0.19864828,878.11,875.81,1.5398872]
[1757276848208,0.19864828,878.11,875.94,0.71901865]
[1757276848406,0.19864828,878.11,875.95,0.71901865]
[1757276848709,0.19864828,878.11,876.06,1.5398872]
[1757276848914,0.19864828,878.11,876.07,0.71901865]
[1757276849114,0.19864828,878.11,876.08,0.71901865]
[1757276849312,0.19864828,878.11,876.09,0.71901865]
[1757276849615,0.19864828,878.11,876.1,0.71901865]
[1757276849911,0.19864828,878.11,876.11,0.71901865]
[1757276850114,0.19864828,878.11,875.15,2.162]
[1757276850115,0.19864828,878.11,876.12,0.71901865]
[1757276850316,0.19864828,878.11,876.13,0.71901865]
[1757276850615,0.19864828,878.11,876.14,0.71901865]
[1757276850815,0.19864828,878.11,876.15,0.71901865]
[1757276851113,0.19864828,878.11,876.18,1.5398872]
[1757276851312,0.19864828,878.11,876.19,0.71901865]
[1757276851512,0.19864828,878.11,876.2,0.71901865]
[1757276851712,0.19864828,878.11,876.21,0.71901865]
[1757276851911,0.19864828,878.11,876.22,0.71901865]
[1757276852116,0.19864828,878.11,876.23,0.71901865]
[1757276852315,0.19864828,878.11,876.24,0.71901865]
[1757276852616,0.19864828,878.11,876.25,0.71901865]
[1757276852811,0.19864828,878.11,876.26,0.71901865]
[1757276853016,0.19864828,878.11,876.27,0.71901865]
[1757276853216,0.19864828,878.11,875.42,2.5666806]
[1757276853217,0.19864828,878.11,876.28,0.71901865]
[1757276853414,0.19864828,878.11,876.29,0.71901865]
[1757276853714,0.19864828,878.11,876.3,0.71901865]
[1757276853917,0.19864828,878.11,876.31,0.71901865]
[1757276854116,0.19864828,878.11,876.32,0.71901865]
[1757276854315,0.19864828,878.11,876.33,0.71901865]
[1757276854516,0.19864828,878.11,876.34,0.71901865]
[1757276854813,0.19864828,878.11,876.35,0.71901865]
[1757276855117,0.19864828,878.11,876.36,0.71901865]
[1757276855313,0.19864828,878.11,876.37,0.71901865]
[1757276855515,0.19864828,878.11,876.38,0.71901865]
[1757276855715,0.19864828,878.11,876.39,0.71901865]
[1757276855916,0.19864828,878.11,876.4,0.71901865]
[1757276856113,0.19864828,878.11,876.23,1.5398872]
[1757276856313,0.19864828,878.11,876.24,0.72433592]
[1757276856517,0.19864828,878.11,876.25,0.72433592]
[1757276856711,0.19864828,878.11,876.26,0.72433592]
[1757276856914,0.19864828,878.11,876.27,0.72433592]
[1757276857214,0.19864828,878.11,876.28,0.72433592]
[1757276857516,0.19864828,878.11,876.29,0.72433592]
[1757276857717,0.19864828,878.11,876.3,0.72433592]
[1757276857914,0.19864828,878.11,876.31,0.72433592]
[1757276858113,0.19864828,878.11,876.32,0.72433592]
[1757276858312,0.19864828,878.11,876.33,0.72433592]
[1757276858516,0.19864828,878.11,876.34,0.72433592]
[1757276858717,0.19864828,878.11,876.35,0.72433592]
[1757276859013,0.19864828,878.11,876.36,0.72433592]
[1757276859213,0.19864828,878.11,876.37,0.72433592]
[1757276859417,0.19864828,878.11,876.38,0.72433592]
[1757276859618,0.19864828,878.11,876.39,0.72433592]
[1757276859819,0.19864828,878.11,876.4,0.72433592]
[1757276860022,0.19864828,878.11,876.21,1.5398872]
[1757276860220,0.19864828,878.11,876.22,0.72458018]
[1757276860418,0.19864828,878.11,876.23,0.72458018]
[1757276860620,0.19864828,878.11,876.24,0.72458018]
[1757276860821,0.19864828,878.11,876.21,1.5398872]
[1757276860822,0.19864828,878.11,876.25,0.72458018]
[1757276861022,0.19864828,878.11,876.26,0.72458018]
[1757276861321,0.19864828,878.11,876.27,0.72458018]
[1757276861521,0.19864828,878.11,876.28,0.72458018]
[1757276861720,0.19864828,878.11,876.21,1.5398872]
[1757276861721,0.19864828,878.11,876.29,0.72458018]
[1757276862018,0.19864828,878.11,876.3,0.72458018]
[1757276862221,0.19864828,878.11,876.31,0.72458018]
[1757276862422,0.19864828,878.11,876.32,0.72458018]
[1757276862720,0.19864828,878.11,876.33,0.72458018]
[1757276862921,0.19864828,878.11,876.34,0.72458018]
[1757276863118,0.19864828,878.11,876.35,0.72458018]
[1757276863323,0.19864828,878.11,876.36,0.72458018]
[1757276863522,0.19864828,878.11,876.37,0.72458018]
[1757276863720,0.19864828,878.11,876.38,0.72458018]
[1757276864020,0.19864828,878.11,876.39,0.72458018]
[1757276864223,0.19864828,878.11,876.4,0.72458018]
[1757276864422,0.19864828,878.11,876.41,0.72458018]
[1757276864624,0.19864828,878.11,876.23,1.5398872]
[1757276864818,0.19864828,878.11,876.24,0.72508283]
[1757276865021,0.19864828,878.11,876.25,0.72508283]
[1757276865223,0.19864828,878.11,876.26,0.72508283]
[1757276865421,0.19864828,878.11,876.27,0.72508283]
[1757276865626,0.19864828,878.11,876.28,0.72508283]
[1757276865925,0.19864828,878.11,876.29,0.72508283]
[1757276866125,0.19864828,878.11,876.3,0.72508283]
[1757276866321,0.19864828,878.11,876.31,0.72508283]
[1757276866526,0.19864828,878.11,876.32,0.72508283]
[1757276866724,0.19864828,878.11,876.33,0.72508283]
[1757276866923,0.19864828,878.11,876.34,0.72508283]
[1757276867130,0.19864828,878.11,876.35,0.72508283]
[1757276867325,0.19864828,878.11,876.36,0.72508283]
[1757276867524,0.19864828,878.11,876.37,0.72508283]
[1757276867724,0.19864828,878.11,876.38,0.72508283]
[1757276867925,0.19864828,878.11,876.39,0.72508283]
[1757276868127,0.19864828,878.11,876.4,0.72508283]
[1757276868427,1.5411207,878.1,876.41,0.72508283]
[1757276868626,1.73976898,878.11,876.24,1.5398872]
[1757276868828,1.73976898,878.11,876.25,0.72566561]
[1757276869030,1.73976898,878.11,876.24,1.5398872]
[1757276869031,1.73976898,878.11,876.26,0.72566561]
[1757276869231,1.5411207,878.09,876.27,0.72566561]
[1757276869431,1.5411207,878.08,876.28,0.72566561]
[1757276869726,1.5411207,878.08,876.29,0.72566561]
[1757276869930,1.5411207,878.08,876.3,0.72566561]
[1757276870126,1.5411207,878.08,876.31,0.72566561]
[1757276870432,1.5411207,878.06,876.32,0.72566561]
[1757276870628,1.5411207,878.07,876.33,0.72566561]
[1757276870833,1.5411207,878.07,876.41,1.023642]
[1757276871134,1.5411207,878.06,876.41,1.023642]
[1757276871433,1.5411207,878.04,876.41,1.023642]
[1757276872233,1.5411207,878.08,876.41,1.023642]
[1757276872432,1.5411207,878.04,876.41,1.023642]
[1757276872630,1.5411207,878.05,876.41,1.023642]
[1757276873430,1.5411207,878.03,876.41,1.023642]
[1757276874234,1.5411207,878.0,876.41,1.023642]
[1757276874634,1.5411207,877.99,876.41,1.023642]
[1757276875537,1.5411207,877.96,876.41,1.023642]
[1757276876238,1.5411207,877.94,876.41,1.023642]
[1757276877036,1.5411207,877.93,876.41,1.023642]
[1757276877238,1.5411207,877.91,876.41,1.023642]
[1757276877636,1.5411207,877.93,876.41,1.023642]
[1757276878438,1.5411207,877.89,876.41,1.023642]
[1757276878638,1.5411207,877.88,876.41,1.023642]
[1757276879434,1.5411207,877.83,876.41,1.023642]
[1757276880338,1.5411207,877.82,876.41,1.023642]
[1757276881040,1.5411207,877.83,876.41,1.023642]
[1757276881740,1.5411207,877.82,876.41,1.79527704]
[1757276882241,1.5411207,877.79,876.41,3.33516424]
[1757276882435,1.5411207,877.78,876.41,3.33516424]
[1757276882642,1.5411207,877.79,876.41,3.33516424]
[1757276884040,1.5411207,877.79,876.41,2.5635292]
[1757276884248,1.5411207,877.8,876.41,3.33518886]
[1757276884642,1.5411207,877.79,876.41,3.33518886]
[1757276885642,1.5411207,877.78,876.41,3.33518886]
[1757276886146,1.5411207,877.79,876.41,3.33518886]
[1757276886346,1.5411207,877.78,876.41,3.33518886]
[1757276886948,1.5411207,877.8,876.41,3.33518886]
[1757276887548,1.5411207,877.78,876.41,3.33518886]
[1757276888852,1.5411207,877.79,876.41,3.33518886]
[1757276890353,1.5411207,877.8,876.41,3.33518886]
[1757276890953,1.5411207,877.79,876.41,3.33518886]
[1757276892556,1.5411207,877.78,876.41,3.33518886]
[1757276893353,1.5411207,877.79,876.41,3.33518886]
[1757276894355,1.5411207,877.77,876.41,3.33518886]
[1757276895250,1.5411207,877.78,876.41,3.33518886]
[1757276895856,1.5411207,877.77,876.41,3.33518886]
[1757276896355,1.5411207,877.79,876.41,3.33518886]
[1757276896755,1.5411207,877.77,876.41,3.33518886]
[1757276897153,1.5411207,877.76,876.41,3.33518886]
[1757276898154,1.5411207,877.77,876.41,3.33518886]
[1757276898854,1.5411207,877.76,876.41,3.33518886]
[1757276899253,1.5411207,877.77,876.41,3.33518886]